[Event "Late-Titled-Tuesday-Blitz-September-26-2023"]
[Site "Chess.com"]
[Date "2023.09.26"]
[Round "7"]
[White "PNEPaul"]
[Black "aranibos"]
[Result "0-1"]
[WhiteElo "1943"]
[BlackElo "2276"]
[TimeControl "180+1"]
[EndTime "15:13:51 PDT"]
[Termination "aranibos won on time"]

1. e4 {[%clk 0:03:00.9]} 1... c6 {[%clk 0:02:58.7]} 2. d4 {[%clk 0:03:00]} 2...
d5 {[%clk 0:02:59.3]} 3. exd5 {[%clk 0:02:59.9]} 3... cxd5 {[%clk 0:02:59.4]} 4.
c4 {[%clk 0:02:59.9]} 4... a6 {[%clk 0:02:59.9]} 5. Nc3 {[%clk 0:03:00.1]} 5...
Nf6 {[%clk 0:02:57.8]} 6. Nf3 {[%clk 0:03:00.1]} 6... Bg4 {[%clk 0:02:56.3]} 7.
Be2 {[%clk 0:02:59.9]} 7... e6 {[%clk 0:02:55.3]} 8. O-O {[%clk 0:02:59.7]} 8...
Nc6 {[%clk 0:02:52]} 9. c5 {[%clk 0:02:59.3]} 9... Bxf3 {[%clk 0:02:40.3]} 10.
Bxf3 {[%clk 0:02:58.3]} 10... Be7 {[%clk 0:02:40.9]} 11. a3 {[%clk 0:02:57.4]}
11... O-O {[%clk 0:02:41.2]} 12. b4 {[%clk 0:02:57.4]} 12... b6 {[%clk
0:02:31.1]} 13. Be3 {[%clk 0:02:36.5]} 13... bxc5 {[%clk 0:02:25.9]} 14. dxc5
{[%clk 0:02:31.1]} 14... Rc8 {[%clk 0:02:20.1]} 15. Na4 {[%clk 0:02:24.6]} 15...
d4 {[%clk 0:02:13.6]} 16. Bg5 {[%clk 0:02:03.4]} 16... e5 {[%clk 0:02:06.5]} 17.
Nb6 {[%clk 0:01:55.7]} 17... Rc7 {[%clk 0:02:06.3]} 18. Bxf6 {[%clk 0:01:51.5]}
18... Bxf6 {[%clk 0:02:04.1]} 19. Qa4 {[%clk 0:01:47.5]} 19... Nb8 {[%clk
0:01:52.8]} 20. Rad1 {[%clk 0:01:37.5]} 20... Re8 {[%clk 0:01:49.8]} 21. Be4
{[%clk 0:01:16.1]} 21... g6 {[%clk 0:01:27.8]} 22. Qb3 {[%clk 0:01:12.3]} 22...
Bg7 {[%clk 0:01:25]} 23. Bd5 {[%clk 0:01:01.5]} 23... Nc6 {[%clk 0:01:22.6]} 24.
Bxc6 {[%clk 0:00:52.3]} 24... Rxc6 {[%clk 0:01:22.4]} 25. Nc4 {[%clk 0:00:48.3]}
25... Bf8 {[%clk 0:01:19.6]} 26. Qa4 {[%clk 0:00:37.3]} 26... Qc8 {[%clk
0:01:17.3]} 27. Nb6 {[%clk 0:00:34.4]} 27... Qb7 {[%clk 0:01:17.6]} 28. Nd5
{[%clk 0:00:31.5]} 28... Kg7 {[%clk 0:01:15.9]} 29. f4 {[%clk 0:00:20.2]} 29...
e4 {[%clk 0:01:11.9]} 30. Rxd4 {[%clk 0:00:17.9]} 30... Rxc5 {[%clk 0:01:12.3]}
31. bxc5 {[%clk 0:00:11.8]} 31... Bxc5 {[%clk 0:01:12.7]} 32. Qc4 {[%clk
0:00:07.2]} 32... Qa7 {[%clk 0:01:07.5]} 33. Rd1 {[%clk 0:00:06]} 33... f6
{[%clk 0:00:59.9]} 34. Kf1 {[%clk 0:00:04.8]} 34... e3 {[%clk 0:00:48.2]} 35.
Qd3 {[%clk 0:00:03.7]} 35... Bxd4 {[%clk 0:00:47.6]} 36. Qxd4 {[%clk 0:00:03.2]}
36... e2+ {[%clk 0:00:47.9]} 0-1

[Event "Late-Titled-Tuesday-Blitz-September-26-2023"]
[Site "Chess.com"]
[Date "2023.09.26"]
[Round "7"]
[White "The_Princess_Moon"]
[Black "EsmeraldasAnderson03"]
[Result "0-1"]
[WhiteElo "2281"]
[BlackElo "2428"]
[TimeControl "180+1"]
[EndTime "15:13:54 PDT"]
[Termination "EsmeraldasAnderson03 won by resignation"]

1. e4 {[%clk 0:03:00.9]} 1... c5 {[%clk 0:03:00]} 2. Nf3 {[%clk 0:03:01.4]} 2...
d6 {[%clk 0:03:00.7]} 3. c3 {[%clk 0:03:01.5]} 3... Nf6 {[%clk 0:03:00.9]} 4. h3
{[%clk 0:03:02.2]} 4... Nc6 {[%clk 0:02:59.4]} 5. Bd3 {[%clk 0:03:02.7]} 5... e6
{[%clk 0:02:59]} 6. Bc2 {[%clk 0:03:03]} 6... Be7 {[%clk 0:02:59.5]} 7. O-O
{[%clk 0:03:02.8]} 7... O-O {[%clk 0:02:59.1]} 8. Re1 {[%clk 0:03:03.5]} 8... b6
{[%clk 0:02:54.8]} 9. d4 {[%clk 0:03:01]} 9... cxd4 {[%clk 0:02:55.1]} 10. cxd4
{[%clk 0:03:01.6]} 10... Nb4 {[%clk 0:02:55.7]} 11. Nc3 {[%clk 0:02:53.1]} 11...
Nxc2 {[%clk 0:02:55.1]} 12. Qxc2 {[%clk 0:02:54]} 12... Bb7 {[%clk 0:02:55]} 13.
Bg5 {[%clk 0:02:49.3]} 13... h6 {[%clk 0:02:52.1]} 14. Bh4 {[%clk 0:02:42.3]}
14... Rc8 {[%clk 0:02:51.6]} 15. Rad1 {[%clk 0:02:31.1]} 15... d5 {[%clk
0:02:51]} 16. Bxf6 {[%clk 0:02:27.4]} 16... Bxf6 {[%clk 0:02:51.9]} 17. e5
{[%clk 0:02:26.3]} 17... Be7 {[%clk 0:02:50.4]} 18. Qa4 {[%clk 0:02:19.8]} 18...
Rc4 {[%clk 0:02:33.4]} 19. Qb3 {[%clk 0:01:32.4]} 19... Qc7 {[%clk 0:02:25.8]}
20. Nb5 {[%clk 0:01:30.1]} 20... Qd7 {[%clk 0:02:24.5]} 21. Nd6 {[%clk 0:01:22]}
21... Bxd6 {[%clk 0:02:22.3]} 22. exd6 {[%clk 0:01:22.6]} 22... Qxd6 {[%clk
0:02:22.9]} 23. Ne5 {[%clk 0:01:21.1]} 23... Rc7 {[%clk 0:02:10.8]} 24. Qf3
{[%clk 0:01:11.8]} 24... Rc2 {[%clk 0:01:37.2]} 25. Re2 {[%clk 0:01:02.3]} 25...
Qc7 {[%clk 0:01:36.2]} 26. Rd3 {[%clk 0:00:39.4]} 26... Rc1+ {[%clk 0:01:30.4]}
27. Kh2 {[%clk 0:00:33.3]} 27... Ba6 {[%clk 0:01:30.4]} 28. Ra3 {[%clk
0:00:18.2]} 28... Bxe2 {[%clk 0:01:29.1]} 29. Qxe2 {[%clk 0:00:19.1]} 29... f6
{[%clk 0:01:29.1]} 30. Rg3 {[%clk 0:00:13.5]} 30... fxe5 {[%clk 0:01:28.6]} 31.
dxe5 {[%clk 0:00:12.1]} 31... Rc2 {[%clk 0:01:28.8]} 32. Qg4 {[%clk 0:00:12.1]}
32... Qxe5 {[%clk 0:01:24.9]} 33. f4 {[%clk 0:00:09.5]} 33... Rxf4 {[%clk
0:01:23.9]} 34. Qg6 {[%clk 0:00:09.4]} 34... Rxg2+ {[%clk 0:01:02.6]} 35. Kxg2
{[%clk 0:00:05.7]} 35... Qe2+ {[%clk 0:01:02.5]} 36. Kh1 {[%clk 0:00:05.5]}
36... Rf1+ {[%clk 0:01:02.9]} 37. Rg1 {[%clk 0:00:05.9]} 37... Qf3+ {[%clk
0:01:03.4]} 38. Qg2 {[%clk 0:00:05.4]} 38... Qxg2+ {[%clk 0:01:02.6]} 39. Kxg2
{[%clk 0:00:05.6]} 39... Rxg1+ {[%clk 0:01:03.5]} 40. Kxg1 {[%clk 0:00:06.3]}
40... e5 {[%clk 0:01:03.6]} 41. Kf2 {[%clk 0:00:06.8]} 41... g5 {[%clk 0:01:03]}
42. Kf3 {[%clk 0:00:07.7]} 42... h5 {[%clk 0:01:03.5]} 43. Kg3 {[%clk
0:00:07.4]} 43... b5 {[%clk 0:01:03.8]} 44. h4 {[%clk 0:00:08.3]} 44... g4
{[%clk 0:01:03.4]} 0-1

[Event "Late-Titled-Tuesday-Blitz-September-26-2023"]
[Site "Chess.com"]
[Date "2023.09.26"]
[Round "7"]
[White "ljm509"]
[Black "chesselephant"]
[Result "1-0"]
[WhiteElo "2348"]
[BlackElo "2514"]
[TimeControl "180+1"]
[EndTime "15:13:59 PDT"]
[Termination "ljm509 won by resignation"]

1. e4 {[%clk 0:03:00.8]} 1... e5 {[%clk 0:02:59.7]} 2. Nf3 {[%clk 0:03:00.7]}
2... Nc6 {[%clk 0:02:59.8]} 3. Bc4 {[%clk 0:03:00.3]} 3... Nf6 {[%clk
0:02:59.7]} 4. d3 {[%clk 0:02:55.9]} 4... Be7 {[%clk 0:02:59.2]} 5. O-O {[%clk
0:02:55.6]} 5... O-O {[%clk 0:02:59.3]} 6. h3 {[%clk 0:02:55.3]} 6... d6 {[%clk
0:02:58.8]} 7. a4 {[%clk 0:02:54.9]} 7... Na5 {[%clk 0:02:58.4]} 8. Ba2 {[%clk
0:02:54.7]} 8... c5 {[%clk 0:02:59.1]} 9. Nc3 {[%clk 0:02:52.4]} 9... Nc6 {[%clk
0:02:57.1]} 10. Nd5 {[%clk 0:02:52]} 10... Be6 {[%clk 0:02:55.7]} 11. c3 {[%clk
0:02:51.6]} 11... a6 {[%clk 0:02:53.7]} 12. Bg5 {[%clk 0:02:49.4]} 12... Nxd5
{[%clk 0:02:38.8]} 13. exd5 {[%clk 0:02:49.3]} 13... Bxd5 {[%clk 0:02:28.2]} 14.
Bxd5 {[%clk 0:02:44.6]} 14... Bxg5 {[%clk 0:02:27.4]} 15. Qb3 {[%clk 0:02:37.9]}
15... Rb8 {[%clk 0:02:23.2]} 16. Qc4 {[%clk 0:02:31.6]} 16... Na5 {[%clk
0:02:00.5]} 17. Qg4 {[%clk 0:02:20.3]} 17... Bf6 {[%clk 0:01:58.2]} 18. Nd2
{[%clk 0:02:18.5]} 18... g6 {[%clk 0:01:56.9]} 19. f4 {[%clk 0:02:15.2]} 19...
exf4 {[%clk 0:01:51.9]} 20. Ne4 {[%clk 0:02:08.9]} 20... Be5 {[%clk 0:01:48.9]}
21. Rad1 {[%clk 0:01:53.9]} 21... Nc6 {[%clk 0:01:49]} 22. Ng5 {[%clk
0:01:43.9]} 22... Bf6 {[%clk 0:00:56.3]} 23. Nxf7 {[%clk 0:01:24.1]} 23... Rxf7
{[%clk 0:00:53.4]} 24. Bxf7+ {[%clk 0:01:24]} 24... Kxf7 {[%clk 0:00:51.4]} 25.
Rxf4 {[%clk 0:01:24.9]} 25... Kg8 {[%clk 0:00:40.2]} 26. Rdf1 {[%clk 0:01:24.7]}
26... Bg7 {[%clk 0:00:35.8]} 27. Qe6+ {[%clk 0:01:21.1]} 27... Kh8 {[%clk
0:00:35]} 28. Rf7 {[%clk 0:01:19.3]} 28... Ne5 {[%clk 0:00:21]} 29. Rxg7 {[%clk
0:01:12.2]} 29... Kxg7 {[%clk 0:00:20.6]} 30. d4 {[%clk 0:01:13.1]} 30... cxd4
{[%clk 0:00:15.5]} 31. cxd4 {[%clk 0:01:12.9]} 31... Qe8 {[%clk 0:00:06.3]} 32.
Qf6+ {[%clk 0:01:11.5]} 32... Kg8 {[%clk 0:00:06.7]} 33. dxe5 {[%clk 0:01:11.2]}
33... dxe5 {[%clk 0:00:04.7]} 34. Rd1 {[%clk 0:01:10.2]} 34... Qf7 {[%clk
0:00:01.8]} 35. Qxe5 {[%clk 0:01:09]} 35... Re8 {[%clk 0:00:02.5]} 36. Qc3
{[%clk 0:01:04.9]} 36... Qe7 {[%clk 0:00:02.4]} 37. Kh1 {[%clk 0:00:59.3]} 37...
Qf7 {[%clk 0:00:02.4]} 38. b4 {[%clk 0:00:55.3]} 38... Re7 {[%clk 0:00:02.9]}
39. b5 {[%clk 0:00:52.3]} 39... axb5 {[%clk 0:00:02.8]} 40. axb5 {[%clk
0:00:53.2]} 40... Rc7 {[%clk 0:00:02.9]} 41. Rd8+ {[%clk 0:00:53]} 1-0

[Event "Late-Titled-Tuesday-Blitz-September-26-2023"]
[Site "Chess.com"]
[Date "2023.09.26"]
[Round "7"]
[White "Kombinator01"]
[Black "vova-79"]
[Result "1-0"]
[WhiteElo "2443"]
[BlackElo "2597"]
[TimeControl "180+1"]
[EndTime "15:14:12 PDT"]
[Termination "Kombinator01 won by resignation"]

1. d4 {[%clk 0:03:00.9]} 1... d5 {[%clk 0:02:59.1]} 2. Bf4 {[%clk 0:03:00.5]}
2... Nf6 {[%clk 0:02:58.6]} 3. e3 {[%clk 0:03:00.9]} 3... c5 {[%clk 0:02:58.6]}
4. Nd2 {[%clk 0:03:00.2]} 4... cxd4 {[%clk 0:02:57.8]} 5. exd4 {[%clk
0:02:59.9]} 5... Nc6 {[%clk 0:02:58.5]} 6. c3 {[%clk 0:02:58.6]} 6... Bg4 {[%clk
0:02:57.9]} 7. Qb3 {[%clk 0:02:57.8]} 7... Qd7 {[%clk 0:02:53.5]} 8. Ngf3 {[%clk
0:02:57.1]} 8... Bxf3 {[%clk 0:02:53]} 9. Nxf3 {[%clk 0:02:56.9]} 9... e6 {[%clk
0:02:53.7]} 10. Bb5 {[%clk 0:02:57.2]} 10... Bd6 {[%clk 0:02:53.1]} 11. Ne5
{[%clk 0:02:56.9]} 11... Bxe5 {[%clk 0:02:53.2]} 12. Bxe5 {[%clk 0:02:55.6]}
12... O-O {[%clk 0:02:51.4]} 13. Bxf6 {[%clk 0:02:55.3]} 13... gxf6 {[%clk
0:02:51.2]} 14. Bd3 {[%clk 0:02:41.9]} 14... Kh8 {[%clk 0:02:50.1]} 15. Qd1
{[%clk 0:02:28.3]} 15... Rg8 {[%clk 0:02:46.8]} 16. Qh5 {[%clk 0:02:26.2]} 16...
Rg7 {[%clk 0:02:36.3]} 17. f4 {[%clk 0:02:18.1]} 17... f5 {[%clk 0:02:31.3]} 18.
g3 {[%clk 0:02:14.8]} 18... Ne7 {[%clk 0:02:29.1]} 19. O-O-O {[%clk 0:02:08.4]}
19... b5 {[%clk 0:02:27.6]} 20. h3 {[%clk 0:02:03]} 20... b4 {[%clk 0:02:27.2]}
21. c4 {[%clk 0:02:02.4]} 21... dxc4 {[%clk 0:02:23.8]} 22. Bxc4 {[%clk
0:02:03.3]} 22... Rc8 {[%clk 0:02:21.9]} 23. b3 {[%clk 0:02:02.7]} 23... Rxg3
{[%clk 0:02:20.2]} 24. Qxf7 {[%clk 0:01:59.3]} 24... Qd6 {[%clk 0:01:35.2]} 25.
Qf6+ {[%clk 0:01:49.2]} 25... Kg8 {[%clk 0:01:28.3]} 26. Kb1 {[%clk 0:01:45.6]}
26... Nd5 {[%clk 0:01:25.8]} 27. Bxd5 {[%clk 0:01:29.2]} 27... Qxd5 {[%clk
0:01:21.3]} 28. Rhg1 {[%clk 0:01:29.8]} 28... Rc3 {[%clk 0:01:07.6]} 29. Rc1
{[%clk 0:01:10.8]} 29... Qe4+ {[%clk 0:01:01.4]} 30. Ka1 {[%clk 0:01:09.6]}
30... Qe3 {[%clk 0:00:55.7]} 31. Rxg3+ {[%clk 0:01:06.8]} 31... Qxg3 {[%clk
0:00:56]} 32. Qxe6+ {[%clk 0:01:07.4]} 32... Kh8 {[%clk 0:00:54.6]} 33. Qe5+
{[%clk 0:00:59.3]} 33... Kg8 {[%clk 0:00:54.4]} 34. Qe8+ {[%clk 0:00:53.8]}
34... Kg7 {[%clk 0:00:54.1]} 35. Qe7+ {[%clk 0:00:45]} 35... Kg8 {[%clk
0:00:51.2]} 36. Re1 {[%clk 0:00:42.8]} 36... Rc2 {[%clk 0:00:06.6]} 37. Qe8+
{[%clk 0:00:35.3]} 37... Kg7 {[%clk 0:00:07]} 38. Re7+ {[%clk 0:00:35.7]} 38...
Kh6 {[%clk 0:00:07.4]} 39. Qf8+ {[%clk 0:00:34.5]} 39... Kh5 {[%clk 0:00:07.2]}
40. Rxh7+ {[%clk 0:00:35.1]} 1-0

[Event "Late-Titled-Tuesday-Blitz-September-26-2023"]
[Site "Chess.com"]
[Date "2023.09.26"]
[Round "7"]
[White "egnfanclub"]
[Black "Eloist"]
[Result "1-0"]
[WhiteElo "2405"]
[BlackElo "2476"]
[TimeControl "180+1"]
[EndTime "15:14:16 PDT"]
[Termination "egnfanclub won by checkmate"]

1. e4 {[%clk 0:03:00.9]} 1... e6 {[%clk 0:03:00]} 2. d4 {[%clk 0:03:00.5]} 2...
d5 {[%clk 0:02:59.8]} 3. Nc3 {[%clk 0:03:00.3]} 3... Nf6 {[%clk 0:02:59.4]} 4.
e5 {[%clk 0:02:59.7]} 4... Nfd7 {[%clk 0:02:58.7]} 5. Nf3 {[%clk 0:02:59.9]}
5... c5 {[%clk 0:02:58.7]} 6. dxc5 {[%clk 0:03:00.8]} 6... Nc6 {[%clk
0:02:58.5]} 7. Bf4 {[%clk 0:03:00.6]} 7... Bxc5 {[%clk 0:02:58.2]} 8. Bd3 {[%clk
0:03:01]} 8... f6 {[%clk 0:02:58.2]} 9. exf6 {[%clk 0:02:52.3]} 9... Qxf6 {[%clk
0:02:59.1]} 10. Bg5 {[%clk 0:02:50.4]} 10... Qf7 {[%clk 0:02:58.9]} 11. Bh4
{[%clk 0:02:33.5]} 11... h6 {[%clk 0:02:38.9]} 12. Qe2 {[%clk 0:02:22.3]} 12...
O-O {[%clk 0:02:37.3]} 13. O-O-O {[%clk 0:02:17.1]} 13... Bb4 {[%clk 0:02:32]}
14. Nb5 {[%clk 0:02:03]} 14... Nc5 {[%clk 0:02:22.3]} 15. Bg3 {[%clk 0:01:55.2]}
15... Nxd3+ {[%clk 0:02:13.5]} 16. Qxd3 {[%clk 0:01:53.3]} 16... Bd7 {[%clk
0:01:50.8]} 17. a3 {[%clk 0:01:46]} 17... Be7 {[%clk 0:01:48.4]} 18. Rhe1 {[%clk
0:01:34.5]} 18... Rac8 {[%clk 0:01:16.4]} 19. Nfd4 {[%clk 0:01:25.1]} 19... Nxd4
{[%clk 0:01:14.7]} 20. Nxd4 {[%clk 0:01:26]} 20... Bf6 {[%clk 0:01:04.9]} 21. f4
{[%clk 0:01:19.7]} 21... Rc4 {[%clk 0:00:56.4]} 22. Nf3 {[%clk 0:01:16]} 22...
Bb5 {[%clk 0:00:49.4]} 23. Qe3 {[%clk 0:00:58.1]} 23... Rfc8 {[%clk 0:00:44.1]}
24. Rd2 {[%clk 0:00:55.8]} 24... Re4 {[%clk 0:00:42.3]} 25. Qb3 {[%clk 0:00:49]}
25... Rxe1+ {[%clk 0:00:37.6]} 26. Bxe1 {[%clk 0:00:44.8]} 26... Bc4 {[%clk
0:00:33.7]} 27. Qe3 {[%clk 0:00:39.2]} 27... a6 {[%clk 0:00:25.1]} 28. Bf2
{[%clk 0:00:38.8]} 28... Qd7 {[%clk 0:00:16.2]} 29. g4 {[%clk 0:00:37.6]} 29...
Be7 {[%clk 0:00:12.5]} 30. g5 {[%clk 0:00:36.6]} 30... Bc5 {[%clk 0:00:12]} 31.
Qe1 {[%clk 0:00:34.2]} 31... Bxf2 {[%clk 0:00:11.7]} 32. Rxf2 {[%clk 0:00:31.8]}
32... h5 {[%clk 0:00:11.2]} 33. Ne5 {[%clk 0:00:29.4]} 33... Qc7 {[%clk
0:00:10.8]} 34. g6 {[%clk 0:00:27.7]} 34... Bb5 {[%clk 0:00:08.4]} 35. Qd1
{[%clk 0:00:26.9]} 35... Qe7 {[%clk 0:00:07.2]} 36. Qxh5 {[%clk 0:00:25.3]}
36... Kf8 {[%clk 0:00:01.5]} 37. Qh8# {[%clk 0:00:24.7]} 1-0

[Event "Late-Titled-Tuesday-Blitz-September-26-2023"]
[Site "Chess.com"]
[Date "2023.09.26"]
[Round "7"]
[White "nitpicker"]
[Black "Garmendiarov"]
[Result "1-0"]
[WhiteElo "2250"]
[BlackElo "2295"]
[TimeControl "180+1"]
[EndTime "15:14:20 PDT"]
[Termination "nitpicker won by checkmate"]

1. d4 {[%clk 0:03:00.9]} 1... Nf6 {[%clk 0:02:59.9]} 2. c4 {[%clk 0:03:00.9]}
2... g6 {[%clk 0:03:00.5]} 3. Nc3 {[%clk 0:03:00.5]} 3... d5 {[%clk 0:03:01]} 4.
Nf3 {[%clk 0:02:58.9]} 4... Bg7 {[%clk 0:03:01.1]} 5. Qb3 {[%clk 0:02:59.6]}
5... dxc4 {[%clk 0:02:59.8]} 6. Qxc4 {[%clk 0:03:00.5]} 6... O-O {[%clk
0:02:59.9]} 7. e4 {[%clk 0:03:00.6]} 7... Nc6 {[%clk 0:02:58.9]} 8. Be2 {[%clk
0:02:57.2]} 8... e5 {[%clk 0:02:57.9]} 9. d5 {[%clk 0:02:55.3]} 9... Nd4 {[%clk
0:02:57.9]} 10. Nxd4 {[%clk 0:02:55.9]} 10... exd4 {[%clk 0:02:58.8]} 11. Qxd4
{[%clk 0:02:56.4]} 11... c6 {[%clk 0:02:53.1]} 12. Qd3 {[%clk 0:02:45.7]} 12...
Re8 {[%clk 0:02:42.4]} 13. d6 {[%clk 0:02:34.5]} 13... Bf8 {[%clk 0:02:26.2]}
14. Bf4 {[%clk 0:02:33.9]} 14... Nh5 {[%clk 0:02:26.4]} 15. Bxh5 {[%clk
0:02:32.8]} 15... gxh5 {[%clk 0:02:25.2]} 16. O-O-O {[%clk 0:02:24.9]} 16... Bd7
{[%clk 0:01:53.1]} 17. e5 {[%clk 0:02:16.7]} 17... Re6 {[%clk 0:01:42.2]} 18.
Ne4 {[%clk 0:02:12.7]} 18... Bg7 {[%clk 0:01:32.1]} 19. Rhe1 {[%clk 0:01:50.3]}
19... Qa5 {[%clk 0:01:17.6]} 20. Ng5 {[%clk 0:01:23.6]} 20... Rg6 {[%clk
0:01:09.2]} 21. Qb3 {[%clk 0:01:14.9]} 21... Be6 {[%clk 0:00:54.3]} 22. Nxe6
{[%clk 0:01:02.5]} 22... Rxe6 {[%clk 0:00:54.5]} 23. Qxb7 {[%clk 0:00:57.6]}
23... Rd8 {[%clk 0:00:37.7]} 24. Qc7 {[%clk 0:00:52.3]} 24... Qc5+ {[%clk
0:00:24.2]} 25. Kb1 {[%clk 0:00:52.6]} 25... Ree8 {[%clk 0:00:17.3]} 26. d7
{[%clk 0:00:37]} 26... Rf8 {[%clk 0:00:16.2]} 27. Qd6 {[%clk 0:00:27.9]} 27...
Qxf2 {[%clk 0:00:14.4]} 28. Bg3 {[%clk 0:00:23.8]} 28... Qf5+ {[%clk 0:00:14.2]}
29. Ka1 {[%clk 0:00:23]} 29... f6 {[%clk 0:00:12.6]} 30. e6 {[%clk 0:00:21.9]}
30... Qc2 {[%clk 0:00:08.7]} 31. e7 {[%clk 0:00:17.5]} 31... Rb8 {[%clk
0:00:07.6]} 32. exf8=Q+ {[%clk 0:00:14.8]} 32... Bxf8 {[%clk 0:00:08]} 33. Qe6+
{[%clk 0:00:13.2]} 33... Kh8 {[%clk 0:00:07.8]} 34. Qxf6+ {[%clk 0:00:11]} 34...
Bg7 {[%clk 0:00:08.1]} 35. d8=Q+ {[%clk 0:00:09.3]} 35... Rxd8 {[%clk
0:00:07.5]} 36. Rxd8# {[%clk 0:00:09.2]} 1-0

[Event "Late-Titled-Tuesday-Blitz-September-26-2023"]
[Site "Chess.com"]
[Date "2023.09.26"]
[Round "7"]
[White "vanyakuba"]
[Black "PotapovaM"]
[Result "0-1"]
[WhiteElo "2391"]
[BlackElo "2606"]
[TimeControl "180+1"]
[EndTime "15:14:25 PDT"]
[Termination "PotapovaM won by checkmate"]

1. e4 {[%clk 0:02:59.3]} 1... g6 {[%clk 0:02:53.9]} 2. d4 {[%clk 0:02:58.8]}
2... Bg7 {[%clk 0:02:53.7]} 3. Nc3 {[%clk 0:02:59.5]} 3... d5 {[%clk 0:02:52.4]}
4. exd5 {[%clk 0:02:38.9]} 4... Nf6 {[%clk 0:02:52]} 5. g3 {[%clk 0:02:19.3]}
5... O-O {[%clk 0:02:50.9]} 6. Bg2 {[%clk 0:02:19.1]} 6... Nbd7 {[%clk
0:02:50.6]} 7. Nge2 {[%clk 0:02:19.2]} 7... Nb6 {[%clk 0:02:51]} 8. Nf4 {[%clk
0:02:13.4]} 8... Bg4 {[%clk 0:02:51.1]} 9. Qd3 {[%clk 0:02:01.8]} 9... Bf5
{[%clk 0:02:50.1]} 10. Qe2 {[%clk 0:01:49.8]} 10... Bg4 {[%clk 0:02:48.8]} 11.
Qd3 {[%clk 0:01:49.5]} 11... g5 {[%clk 0:02:45.3]} 12. Nfe2 {[%clk 0:01:31]}
12... h6 {[%clk 0:02:10.7]} 13. h4 {[%clk 0:01:28.2]} 13... gxh4 {[%clk
0:02:05.6]} 14. Rxh4 {[%clk 0:01:26.8]} 14... h5 {[%clk 0:02:05.5]} 15. Nf4
{[%clk 0:01:04.8]} 15... Qd7 {[%clk 0:02:05.4]} 16. Be3 {[%clk 0:00:58.2]} 16...
Bf5 {[%clk 0:01:59.5]} 17. Qe2 {[%clk 0:00:58.3]} 17... Bg4 {[%clk 0:01:54.4]}
18. f3 {[%clk 0:00:57.7]} 18... Bf5 {[%clk 0:01:54.3]} 19. O-O-O {[%clk
0:00:58.1]} 19... Nbxd5 {[%clk 0:01:50.4]} 20. Nfxd5 {[%clk 0:00:48.9]} 20...
Nxd5 {[%clk 0:01:51.3]} 21. Nxd5 {[%clk 0:00:49.2]} 21... Qxd5 {[%clk
0:01:50.7]} 22. Rxh5 {[%clk 0:00:45.1]} 22... Qe6 {[%clk 0:01:28.7]} 23. Kb1
{[%clk 0:00:24.9]} 23... Bg6 {[%clk 0:01:28.2]} 24. Rh4 {[%clk 0:00:20.6]} 24...
Rfd8 {[%clk 0:01:20.4]} 25. Qd2 {[%clk 0:00:19.9]} 25... c5 {[%clk 0:01:18.9]}
26. d5 {[%clk 0:00:11.4]} 26... Qb6 {[%clk 0:01:18.2]} 27. Qc1 {[%clk
0:00:08.4]} 27... Qb5 {[%clk 0:01:07.5]} 28. Bh6 {[%clk 0:00:07.7]} 28... Bf6
{[%clk 0:01:06.2]} 29. Rhh1 {[%clk 0:00:07.3]} 29... c4 {[%clk 0:01:04.2]} 30.
Ka1 {[%clk 0:00:07.2]} 30... a5 {[%clk 0:01:01.1]} 31. Bf1 {[%clk 0:00:06]}
31... a4 {[%clk 0:00:59.4]} 32. a3 {[%clk 0:00:05]} 32... Qc5 {[%clk 0:00:58.8]}
33. Ka2 {[%clk 0:00:04.5]} 33... b5 {[%clk 0:00:59.3]} 34. c3 {[%clk 0:00:04.5]}
34... Rxd5 {[%clk 0:00:57.7]} 35. Rxd5 {[%clk 0:00:03.4]} 35... Qxd5 {[%clk
0:00:58.6]} 36. Be2 {[%clk 0:00:02.7]} 36... Bd3 {[%clk 0:00:51.6]} 37. Rd1
{[%clk 0:00:02.5]} 37... Rd8 {[%clk 0:00:48.9]} 38. Bxd3 {[%clk 0:00:02.5]}
38... cxd3+ {[%clk 0:00:49]} 39. Ka1 {[%clk 0:00:03.2]} 39... b4 {[%clk
0:00:48.3]} 40. cxb4 {[%clk 0:00:02.7]} 40... Qb3 {[%clk 0:00:47.9]} 41. Kb1
{[%clk 0:00:03.2]} 41... e6 {[%clk 0:00:36]} 42. Qd2 {[%clk 0:00:03.6]} 42...
Rc8 {[%clk 0:00:31.9]} 43. Qxd3 {[%clk 0:00:03.2]} 43... Qxb2# {[%clk
0:00:31.9]} 0-1

[Event "Late-Titled-Tuesday-Blitz-September-26-2023"]
[Site "Chess.com"]
[Date "2023.09.26"]
[Round "7"]
[White "topin8"]
[Black "roxannyzoldyck"]
[Result "1-0"]
[WhiteElo "2421"]
[BlackElo "2202"]
[TimeControl "180+1"]
[EndTime "15:14:25 PDT"]
[Termination "topin8 won by resignation"]

1. e4 {[%clk 0:03:00.9]} 1... c5 {[%clk 0:02:59.4]} 2. Nf3 {[%clk 0:03:00.6]}
2... d6 {[%clk 0:02:59.8]} 3. c3 {[%clk 0:03:00.7]} 3... Nf6 {[%clk 0:02:58.8]}
4. Be2 {[%clk 0:03:01.1]} 4... g6 {[%clk 0:02:58.9]} 5. O-O {[%clk 0:03:00.7]}
5... Bg7 {[%clk 0:02:59.1]} 6. Bb5+ {[%clk 0:03:01.1]} 6... Nbd7 {[%clk
0:02:55.7]} 7. Re1 {[%clk 0:03:00.4]} 7... O-O {[%clk 0:02:54.3]} 8. d4 {[%clk
0:03:00.6]} 8... a6 {[%clk 0:02:51.9]} 9. Bf1 {[%clk 0:02:59.3]} 9... cxd4
{[%clk 0:02:34]} 10. cxd4 {[%clk 0:02:59.2]} 10... b5 {[%clk 0:02:32]} 11. a4
{[%clk 0:02:57.7]} 11... b4 {[%clk 0:02:24.1]} 12. a5 {[%clk 0:02:43.5]} 12...
Bb7 {[%clk 0:02:21.9]} 13. Nbd2 {[%clk 0:02:37.5]} 13... Rc8 {[%clk 0:02:20.1]}
14. Qb3 {[%clk 0:02:27.9]} 14... Rb8 {[%clk 0:01:58.3]} 15. Bd3 {[%clk
0:01:16.9]} 15... Qc7 {[%clk 0:01:34.4]} 16. Qc4 {[%clk 0:01:00.1]} 16... Qxc4
{[%clk 0:01:25.3]} 17. Nxc4 {[%clk 0:00:36.6]} 17... d5 {[%clk 0:01:19.7]} 18.
exd5 {[%clk 0:00:35.5]} 18... Nxd5 {[%clk 0:01:20.5]} 19. Bd2 {[%clk 0:00:30.7]}
19... e6 {[%clk 0:00:54.5]} 20. Rac1 {[%clk 0:00:25.9]} 20... Rfd8 {[%clk
0:00:45.3]} 21. Bg5 {[%clk 0:00:24.2]} 21... N7f6 {[%clk 0:00:36.9]} 22. Nfd2
{[%clk 0:00:17.3]} 22... h6 {[%clk 0:00:28.4]} 23. Be3 {[%clk 0:00:17.4]} 23...
Ng4 {[%clk 0:00:25.1]} 24. Nb3 {[%clk 0:00:14.7]} 24... Ndxe3 {[%clk 0:00:15.8]}
25. fxe3 {[%clk 0:00:14.6]} 25... e5 {[%clk 0:00:15.6]} 26. h3 {[%clk
0:00:12.8]} 26... Nf6 {[%clk 0:00:13.8]} 27. Nxe5 {[%clk 0:00:13.1]} 27... Nd5
{[%clk 0:00:14.1]} 28. Nc5 {[%clk 0:00:12.8]} 28... Bxe5 {[%clk 0:00:13.2]} 29.
dxe5 {[%clk 0:00:13.2]} 29... Bc6 {[%clk 0:00:10.4]} 30. Nxa6 {[%clk 0:00:12.6]}
30... Rbc8 {[%clk 0:00:10.9]} 31. Bf1 {[%clk 0:00:08.3]} 31... Bb5 {[%clk
0:00:09.3]} 32. Bxb5 {[%clk 0:00:08]} 1-0